[Event "Titled Tuesday Blitz April 4 Early 2023"]
[White "Ward, Ieuan C"]
[Black "Shuvalov, Evgenij"]
[WhiteFideId "406627"]
[BlackFideId "4187237"]
[WhiteElo "2310"]
[BlackElo "2080"]
[Result "1/2-1/2"]
[Round "03"]
[TimeControl "180+2"]
[Date "2023.04.04"]
[WhiteClock "0:00:28"]
[BlackClock "0:00:20"]

1. d4 {[%clk 0:03:00]}  Nf6 {[%clk 0:00:30]} 2. c4 {[%clk 0:02:57]}  g6 {[%clk 0:00:30]} 3. Nc3 {[%clk 0:02:57]}  d5 {[%clk 0:00:30]} 4. cxd5 {[%clk 0:02:58]}  Nxd5 {[%clk 0:00:31]} 5. e4 {[%clk 0:02:59]}  Nxc3 {[%clk 0:00:31]} 6. bxc3 {[%clk 0:03:00]}  Bg7 {[%clk 0:00:31]} 7. Nf3 {[%clk 0:03:00]}  c5 {[%clk 0:00:32]} 8. Rb1 {[%clk 0:03:01]}  O-O {[%clk 0:00:30]} 9. Be2 {[%clk 0:03:01]}  Nc6 {[%clk 0:00:30]} 10. d5 {[%clk 0:03:00]}  Ne5 {[%clk 0:00:30]} 11. Nxe5 {[%clk 0:02:59]}  Bxe5 {[%clk 0:00:31]} 12. Qd2 {[%clk 0:02:59]}  e6 {[%clk 0:00:29]} 13. f4 {[%clk 0:02:57]}  Bc7 {[%clk 0:00:28]} 14. O-O {[%clk 0:02:54]}  exd5 {[%clk 0:00:27]} 15. exd5 {[%clk 0:02:54]}  Rb8 {[%clk 0:00:26]} 16. c4 {[%clk 0:02:52]}  Ba5 {[%clk 0:00:24]} 17. Qc2 {[%clk 0:02:49]}  a6 {[%clk 0:00:23]} 18. Be3 {[%clk 0:02:36]}  Bf5 {[%clk 0:00:22]} 19. Bd3 {[%clk 0:02:35]}  Bxd3 {[%clk 0:00:23]} 20. Qxd3 {[%clk 0:02:36]}  Qd6 {[%clk 0:00:22]} 21. f5 {[%clk 0:02:31]}  b5 {[%clk 0:00:21]} 22. cxb5 {[%clk 0:02:25]}  axb5 {[%clk 0:00:20]} 23. Rxb5 {[%clk 0:02:25]}  Rxb5 {[%clk 0:00:20]} 24. Qxb5 {[%clk 0:02:26]}  Bb4 {[%clk 0:00:20]} 25. Qc6 {[%clk 0:02:11]}  Qxc6 {[%clk 0:00:20]} 26. dxc6 {[%clk 0:02:11]}  Rc8 {[%clk 0:00:20]} 27. fxg6 {[%clk 0:02:01]}  hxg6 {[%clk 0:00:21]} 28. Rf6 {[%clk 0:01:58]}  Kf8 {[%clk 0:00:21]} 29. h4 {[%clk 0:01:29]}  Ke7 {[%clk 0:00:18]} 30. Bg5 {[%clk 0:01:29]}  Bd2 {[%clk 0:00:19]} 31. Rxg6+ {[%clk 0:01:20]}  Bxg5 {[%clk 0:00:18]} 32. Rxg5 {[%clk 0:01:20]}  Rxc6 {[%clk 0:00:18]} 33. Kf2 {[%clk 0:01:09]}  c4 {[%clk 0:00:19]} 34. Ke2 {[%clk 0:01:10]}  c3 {[%clk 0:00:20]} 35. Kd1 {[%clk 0:01:10]}  Ra6 {[%clk 0:00:20]} 36. Kc2 {[%clk 0:00:44]}  Rxa2+ {[%clk 0:00:20]} 37. Kxc3 {[%clk 0:00:45]}  Kf6 {[%clk 0:00:20]} 38. Kd3 {[%clk 0:00:32]}  Ra4 {[%clk 0:00:20]} 39. g3 {[%clk 0:00:33]}  Ra3+ {[%clk 0:00:20]} 40. Ke4 {[%clk 0:00:32]}  Ra4+ {[%clk 0:00:20]} 41. Kf3 {[%clk 0:00:32]}  Ra3+ {[%clk 0:00:20]} 42. Kg4 {[%clk 0:00:32]}  Ra2 {[%clk 0:00:21]} 43. Rg8 {[%clk 0:00:30]}  Ra4+ {[%clk 0:00:21]} 44. Kh3 {[%clk 0:00:30]}  Ra3 {[%clk 0:00:20]} 45. h5 {[%clk 0:00:30]}  Ra5 {[%clk 0:00:19]} 46. g4 {[%clk 0:00:28]}  Ra1 {[%clk 0:00:19]} 47. g5+ {[%clk 0:00:28]}  Kf5 {[%clk 0:00:19]} 48. Rg7 {[%clk 0:00:28]}  Rh1+ {[%clk 0:00:18]} 49. Kg2 {[%clk 0:00:28]}  Rxh5 {[%clk 0:00:19]} 50. Rxf7+ {[%clk 0:00:28]}  Kxg5 {[%clk 0:00:19]} 51. Ra7 {[%clk 0:00:27]}  Kg6 {[%clk 0:00:19]} 52. Ra6+ {[%clk 0:00:27]}  Kf7 {[%clk 0:00:19]} 53. Ra7+ {[%clk 0:00:27]}  Kg6 {[%clk 0:00:19]} 54. Ra6+ {[%clk 0:00:28]}  Kf7 {[%clk 0:00:20]} 55. Ra7+ {[%clk 0:00:28]}  Kg6 {[%clk 0:00:20]} 1/2-1/2


[Site "https://www.chess.com"]

[Event "Titled Tuesday Blitz April 4 Early 2023"]
[White "Dushyant Sharma"]
[Black "Rose, Felix"]
[WhiteFideId "25065130"]
[BlackFideId "5105722"]
[WhiteElo "2198"]
[BlackElo "2039"]
[Result "1-0"]
[Round "03"]
[TimeControl "180+2"]
[Date "2023.04.04"]
[WhiteClock "0:01:05"]
[BlackClock "0:00:03"]

1. e4 {[%clk 0:03:00]}  c5 {[%clk 0:02:58]} 2. Nf3 {[%clk 0:02:59]}  e6 {[%clk 0:02:57]} 3. d4 {[%clk 0:03:00]}  cxd4 {[%clk 0:02:58]} 4. Nxd4 {[%clk 0:03:01]}  a6 {[%clk 0:02:59]} 5. Nc3 {[%clk 0:03:01]}  b5 {[%clk 0:02:59]} 6. f4 {[%clk 0:03:00]}  Bb7 {[%clk 0:02:57]} 7. Bd3 {[%clk 0:03:01]}  Qb6 {[%clk 0:02:48]} 8. Be3 {[%clk 0:02:58]}  Bc5 {[%clk 0:02:48]} 9. Nce2 {[%clk 0:02:55]}  Nc6 {[%clk 0:02:47]} 10. c3 {[%clk 0:02:54]}  b4 {[%clk 0:02:44]} 11. O-O {[%clk 0:02:47]}  d6 {[%clk 0:02:43]} 12. Kh1 {[%clk 0:02:46]}  Nge7 {[%clk 0:02:37]} 13. Rb1 {[%clk 0:02:45]}  e5 {[%clk 0:02:07]} 14. Nxc6 {[%clk 0:02:34]}  Nxc6 {[%clk 0:01:47]} 15. Bxc5 {[%clk 0:02:21]}  Qxc5 {[%clk 0:01:48]} 16. f5 {[%clk 0:02:06]}  f6 {[%clk 0:01:08]} 17. Rc1 {[%clk 0:01:55]}  O-O {[%clk 0:00:57]} 18. cxb4 {[%clk 0:01:44]}  Qxb4 {[%clk 0:00:56]} 19. a3 {[%clk 0:01:44]}  Qb6 {[%clk 0:00:37]} 20. b4 {[%clk 0:01:33]}  Kh8 {[%clk 0:00:33]} 21. Bc4 {[%clk 0:01:27]}  Ne7 {[%clk 0:00:31]} 22. Nc3 {[%clk 0:01:11]}  Rac8 {[%clk 0:00:20]} 23. Be6 {[%clk 0:01:10]}  Rxc3 {[%clk 0:00:13]} 24. Rxc3 {[%clk 0:01:09]}  Bxe4 {[%clk 0:00:13]} 25. Qh5 {[%clk 0:01:06]}  d5 {[%clk 0:00:03]} 26. Qxh7+ {[%clk 0:01:05]} 1-0


[Site "https://www.chess.com"]

[Event "Titled Tuesday Blitz April 4 Early 2023"]
[White "Mouhamad, Joachim"]
[Black "Makhmudov, Shukhrat"]
[WhiteFideId "656410"]
[BlackFideId "14200775"]
[WhiteElo "2125"]
[BlackElo "2135"]
[Result "1-0"]
[Round "03"]
[TimeControl "180+2"]
[Date "2023.04.04"]
[WhiteClock "0:00:07"]
[BlackClock "0:00:15"]

1. e4 {[%clk 0:03:00]}  e5 {[%clk 0:02:59]} 2. Nf3 {[%clk 0:03:01]}  Nc6 {[%clk 0:03:00]} 3. Bb5 {[%clk 0:03:01]}  a6 {[%clk 0:03:00]} 4. Ba4 {[%clk 0:03:01]}  Nf6 {[%clk 0:03:00]} 5. O-O {[%clk 0:03:00]}  Be7 {[%clk 0:03:00]} 6. d3 {[%clk 0:02:59]}  b5 {[%clk 0:03:00]} 7. Bb3 {[%clk 0:02:59]}  O-O {[%clk 0:03:00]} 8. a4 {[%clk 0:02:58]}  Rb8 {[%clk 0:02:58]} 9. axb5 {[%clk 0:02:57]}  axb5 {[%clk 0:02:58]} 10. c3 {[%clk 0:02:54]}  d5 {[%clk 0:02:54]} 11. exd5 {[%clk 0:02:47]}  Nxd5 {[%clk 0:02:54]} 12. Re1 {[%clk 0:02:44]}  Bf6 {[%clk 0:02:54]} 13. Nbd2 {[%clk 0:02:41]}  Nf4 {[%clk 0:02:51]} 14. d4 {[%clk 0:02:32]}  exd4 {[%clk 0:02:41]} 15. Ne4 {[%clk 0:02:32]}  Ne6 {[%clk 0:02:30]} 16. Nxf6+ {[%clk 0:02:21]}  Qxf6 {[%clk 0:02:30]} 17. Bd5 {[%clk 0:02:00]}  dxc3 {[%clk 0:02:22]} 18. bxc3 {[%clk 0:01:44]}  Ne7 {[%clk 0:01:41]} 19. Bxe6 {[%clk 0:01:34]}  fxe6 {[%clk 0:01:42]} 20. Bg5 {[%clk 0:01:22]}  Qf7 {[%clk 0:01:41]} 21. Qe2 {[%clk 0:01:05]}  Nd5 {[%clk 0:01:36]} 22. Bd2 {[%clk 0:00:52]}  Qf6 {[%clk 0:01:26]} 23. Ne5 {[%clk 0:00:50]}  Bb7 {[%clk 0:01:05]} 24. Nd7 {[%clk 0:00:48]}  Qf7 {[%clk 0:00:51]} 25. Qxe6 {[%clk 0:00:44]}  Qxe6 {[%clk 0:00:48]} 26. Rxe6 {[%clk 0:00:44]}  Rfe8 {[%clk 0:00:45]} 27. Rxe8+ {[%clk 0:00:26]}  Rxe8 {[%clk 0:00:45]} 28. Nc5 {[%clk 0:00:27]}  Ba8 {[%clk 0:00:41]} 29. Re1 {[%clk 0:00:26]}  Rxe1+ {[%clk 0:00:41]} 30. Bxe1 {[%clk 0:00:27]}  Kf7 {[%clk 0:00:40]} 31. f3 {[%clk 0:00:27]}  Nf4 {[%clk 0:00:39]} 32. Kf2 {[%clk 0:00:26]}  Nd5 {[%clk 0:00:38]} 33. Bd2 {[%clk 0:00:22]}  h6 {[%clk 0:00:37]} 34. Ke2 {[%clk 0:00:23]}  Bc6 {[%clk 0:00:35]} 35. Kd3 {[%clk 0:00:22]}  Ke7 {[%clk 0:00:35]} 36. Kd4 {[%clk 0:00:23]}  Kd6 {[%clk 0:00:35]} 37. Ne4+ {[%clk 0:00:23]}  Ke6 {[%clk 0:00:36]} 38. h4 {[%clk 0:00:23]}  Be8 {[%clk 0:00:35]} 39. g4 {[%clk 0:00:22]}  Ne7 {[%clk 0:00:34]} 40. h5 {[%clk 0:00:21]}  Kd7 {[%clk 0:00:32]} 41. Ke5 {[%clk 0:00:19]}  Nc6+ {[%clk 0:00:31]} 42. Kf5 {[%clk 0:00:19]}  Bf7 {[%clk 0:00:31]} 43. Bf4 {[%clk 0:00:17]}  Ne7+ {[%clk 0:00:31]} 44. Ke5 {[%clk 0:00:17]}  c6 {[%clk 0:00:31]} 45. Nc5+ {[%clk 0:00:14]}  Kc8 {[%clk 0:00:30]} 46. Kd6 {[%clk 0:00:13]}  Nd5 {[%clk 0:00:31]} 47. Be5 {[%clk 0:00:11]}  Be8 {[%clk 0:00:27]} 48. Bxg7 {[%clk 0:00:11]}  Ne3 {[%clk 0:00:27]} 49. Bxh6 {[%clk 0:00:09]}  Nc4+ {[%clk 0:00:27]} 50. Ke7 {[%clk 0:00:10]}  Ne5 {[%clk 0:00:25]} 51. Kxe8 {[%clk 0:00:09]}  Nxf3 {[%clk 0:00:25]} 52. Bf4 {[%clk 0:00:09]}  Nh4 {[%clk 0:00:24]} 53. h6 {[%clk 0:00:07]}  Ng6 {[%clk 0:00:24]} 54. h7 {[%clk 0:00:06]}  b4 {[%clk 0:00:23]} 55. Be5 {[%clk 0:00:06]}  b3 {[%clk 0:00:17]} 56. Nxb3 {[%clk 0:00:06]}  Nxe5 {[%clk 0:00:17]} 57. h8=Q {[%clk 0:00:06]}  Nd7 {[%clk 0:00:17]} 58. Ke7+ {[%clk 0:00:06]}  Kc7 {[%clk 0:00:18]} 59. Qh2+ {[%clk 0:00:06]}  Kc8 {[%clk 0:00:18]} 60. Qd6 {[%clk 0:00:06]}  Nb8 {[%clk 0:00:17]} 61. Nc5 {[%clk 0:00:06]}  Na6 {[%clk 0:00:15]} 62. Qxc6+ {[%clk 0:00:06]}  Kb8 {[%clk 0:00:15]} 63. Qb7# {[%clk 0:00:07]} 1-0


[Site "https://www.chess.com"]

[Event "Titled Tuesday Blitz April 4 Early 2023"]
[White "Jaskolka, Tomasz"]
[Black "Zaichenko, Daria"]
[WhiteFideId "1170791"]
[BlackFideId "4197453"]
[WhiteElo "2155"]
[BlackElo "2039"]
[Result "0-1"]
[Round "03"]
[TimeControl "180+2"]
[Date "2023.04.04"]
[WhiteClock "0:00:35"]
[BlackClock "0:01:10"]

1. e4 {[%clk 0:02:53]}  c5 {[%clk 0:02:59]} 2. Nf3 {[%clk 0:02:50]}  Nc6 {[%clk 0:02:59]} 3. d4 {[%clk 0:02:48]}  cxd4 {[%clk 0:02:59]} 4. Nxd4 {[%clk 0:02:47]}  Nf6 {[%clk 0:03:00]} 5. Nc3 {[%clk 0:02:48]}  d6 {[%clk 0:03:00]} 6. g3 {[%clk 0:02:47]}  e5 {[%clk 0:02:57]} 7. Nde2 {[%clk 0:02:44]}  Be6 {[%clk 0:02:55]} 8. Bg2 {[%clk 0:02:40]}  Be7 {[%clk 0:02:49]} 9. O-O {[%clk 0:02:39]}  h6 {[%clk 0:02:49]} 10. b3 {[%clk 0:02:34]}  O-O {[%clk 0:02:49]} 11. Bb2 {[%clk 0:02:34]}  Rc8 {[%clk 0:02:49]} 12. Qd2 {[%clk 0:02:31]}  Ne8 {[%clk 0:02:34]} 13. Nd5 {[%clk 0:02:23]}  f5 {[%clk 0:02:32]} 14. exf5 {[%clk 0:02:18]}  Bxf5 {[%clk 0:02:29]} 15. c4 {[%clk 0:02:17]}  Nf6 {[%clk 0:02:23]} 16. Rad1 {[%clk 0:02:14]}  Nxd5 {[%clk 0:02:19]} 17. Qxd5+ {[%clk 0:02:11]}  Kh8 {[%clk 0:02:12]} 18. f4 {[%clk 0:02:12]}  Qe8 {[%clk 0:02:05]} 19. fxe5 {[%clk 0:02:10]}  dxe5 {[%clk 0:02:02]} 20. Kh1 {[%clk 0:01:29]}  Rd8 {[%clk 0:01:48]} 21. Qb5 {[%clk 0:01:28]}  Rxd1 {[%clk 0:01:47]} 22. Rxd1 {[%clk 0:01:28]}  Bg4 {[%clk 0:01:27]} 23. Re1 {[%clk 0:00:57]}  Bb4 {[%clk 0:01:27]} 24. Bxc6 {[%clk 0:00:46]}  Qxc6+ {[%clk 0:01:25]} 25. Qxc6 {[%clk 0:00:46]}  bxc6 {[%clk 0:01:26]} 26. Bc3 {[%clk 0:00:39]}  Bf3+ {[%clk 0:01:23]} 27. Kg1 {[%clk 0:00:39]}  Bc5+ {[%clk 0:01:23]} 28. Kf1 {[%clk 0:00:35]}  Bh1+ {[%clk 0:01:18]} 29. Nf4 {[%clk 0:00:34]}  exf4 {[%clk 0:01:18]} 30. Ke2 {[%clk 0:00:34]}  f3+ {[%clk 0:01:10]} 31. Kd3 {[%clk 0:00:35]} 0-1


[Site "https://www.chess.com"]

[Event "Titled Tuesday Blitz April 4 Early 2023"]
[White "Nugumanov, Bakhtiyar"]
[Black "Shapiro, Viktor"]
[WhiteFideId "13701797"]
[BlackFideId "4175700"]
[WhiteElo "2209"]
[BlackElo "2152"]
[Result "0-1"]
[Round "03"]
[TimeControl "180+2"]
[Date "2023.04.04"]
[WhiteClock "0:00:10"]
[BlackClock "0:01:14"]

1. Nf3 {[%clk 0:03:00]}  Nf6 {[%clk 0:02:49]} 2. c4 {[%clk 0:02:55]}  c5 {[%clk 0:02:49]} 3. Nc3 {[%clk 0:02:53]}  Nc6 {[%clk 0:02:49]} 4. g3 {[%clk 0:02:52]}  d6 {[%clk 0:02:48]} 5. Bg2 {[%clk 0:02:51]}  e6 {[%clk 0:02:48]} 6. d4 {[%clk 0:02:51]}  cxd4 {[%clk 0:02:48]} 7. Nxd4 {[%clk 0:02:52]}  Bd7 {[%clk 0:02:49]} 8. Nc2 {[%clk 0:02:50]}  a6 {[%clk 0:02:49]} 9. O-O {[%clk 0:02:49]}  Rc8 {[%clk 0:02:49]} 10. b3 {[%clk 0:02:42]}  Be7 {[%clk 0:02:48]} 11. e4 {[%clk 0:02:41]}  O-O {[%clk 0:02:45]} 12. Ne3 {[%clk 0:02:28]}  Qa5 {[%clk 0:02:40]} 13. Bd2 {[%clk 0:02:23]}  Qc7 {[%clk 0:02:38]} 14. Rc1 {[%clk 0:01:31]}  Qb8 {[%clk 0:02:38]} 15. f4 {[%clk 0:01:22]}  b5 {[%clk 0:02:36]} 16. Qe2 {[%clk 0:00:49]}  Rfd8 {[%clk 0:02:22]} 17. Kh1 {[%clk 0:00:45]}  h5 {[%clk 0:02:13]} 18. cxb5 {[%clk 0:00:36]}  Nd4 {[%clk 0:02:13]} 19. Qd3 {[%clk 0:00:36]}  Nxb5 {[%clk 0:02:13]} 20. f5 {[%clk 0:00:27]}  Nxc3 {[%clk 0:02:06]} 21. fxe6 {[%clk 0:00:26]}  fxe6 {[%clk 0:02:03]} 22. Bxc3 {[%clk 0:00:20]}  Bb5 {[%clk 0:02:03]} 23. Nc4 {[%clk 0:00:20]}  d5 {[%clk 0:02:02]} 24. exd5 {[%clk 0:00:20]}  exd5 {[%clk 0:02:02]} 25. Be5 {[%clk 0:00:20]}  dxc4 {[%clk 0:01:52]} 26. Qf5 {[%clk 0:00:21]}  Qb6 {[%clk 0:01:46]} 27. bxc4 {[%clk 0:00:22]}  Rxc4 {[%clk 0:01:38]} 28. Bxf6 {[%clk 0:00:21]}  Bxf6 {[%clk 0:01:38]} 29. Bd5+ {[%clk 0:00:21]}  Kf8 {[%clk 0:01:17]} 30. Bxc4 {[%clk 0:00:19]}  Qc6+ {[%clk 0:01:16]} 31. Bd5 {[%clk 0:00:14]}  Qxd5+ {[%clk 0:01:15]} 32. Qxd5 {[%clk 0:00:13]}  Rxd5 {[%clk 0:01:15]} 33. Kg2 {[%clk 0:00:10]}  Bxf1+ {[%clk 0:01:15]} 34. Rxf1 {[%clk 0:00:10]}  Rd2+ {[%clk 0:01:15]} 35. Kh3 {[%clk 0:00:10]}  Rxa2 {[%clk 0:01:14]} 0-1


[Site "https://www.chess.com"]

[Event "Titled Tuesday Blitz April 4 Early 2023"]
[White "EdmundPlayer"]
[Black "Erzhanov, Arman"]
[BlackFideId "4138821"]
[WhiteElo "2240"]
[BlackElo "2138"]
[Result "0-1"]
[Round "03"]
[TimeControl "180+2"]
[Date "2023.04.04"]
[WhiteClock "0:00:32"]
[BlackClock "0:01:47"]

1. e4 {[%clk 0:02:59]}  d5 {[%clk 0:03:00]} 2. exd5 {[%clk 0:02:58]}  Qxd5 {[%clk 0:03:01]} 3. Nc3 {[%clk 0:02:58]}  Qe5+ {[%clk 0:03:01]} 4. Qe2 {[%clk 0:02:56]}  Qd6 {[%clk 0:02:46]} 5. Nf3 {[%clk 0:02:52]}  Nc6 {[%clk 0:02:42]} 6. d4 {[%clk 0:02:45]}  a6 {[%clk 0:02:38]} 7. d5 {[%clk 0:02:03]}  Nb4 {[%clk 0:02:29]} 8. Be3 {[%clk 0:01:38]}  Nxd5 {[%clk 0:02:09]} 9. Nxd5 {[%clk 0:01:30]}  Qxd5 {[%clk 0:02:08]} 10. Rd1 {[%clk 0:01:28]}  Qxa2 {[%clk 0:02:04]} 11. Ne5 {[%clk 0:01:03]}  Nf6 {[%clk 0:01:55]} 12. Qf3 {[%clk 0:00:45]}  Qa5+ {[%clk 0:01:49]} 13. c3 {[%clk 0:00:35]}  Qxe5 {[%clk 0:01:49]} 14. Bc4 {[%clk 0:00:34]}  e6 {[%clk 0:01:48]} 15. O-O {[%clk 0:00:34]}  Bd6 {[%clk 0:01:48]} 16. g3 {[%clk 0:00:33]}  O-O {[%clk 0:01:48]} 17. Bf4 {[%clk 0:00:33]}  Qe4 {[%clk 0:01:47]} 18. Qh5 {[%clk 0:00:32]} 0-1


[Site "https://www.chess.com"]

[Event "Titled Tuesday Blitz April 4 Early 2023"]
[White "Blokhin, Sofia"]
[Black "Leve, Nitai"]
[WhiteFideId "4508190"]
[BlackFideId "2006898"]
[WhiteElo "1994"]
[BlackElo "2144"]
[Result "0-1"]
[Round "03"]
[TimeControl "180+2"]
[Date "2023.04.04"]
[WhiteClock "0:00:01"]
[BlackClock "0:00:07"]

1. d4 {[%clk 0:03:00]}  Nf6 {[%clk 0:02:41]} 2. c4 {[%clk 0:02:59]}  g6 {[%clk 0:02:41]} 3. Nc3 {[%clk 0:02:58]}  Bg7 {[%clk 0:02:41]} 4. e4 {[%clk 0:02:59]}  d6 {[%clk 0:02:41]} 5. f3 {[%clk 0:02:59]}  O-O {[%clk 0:02:42]} 6. Be3 {[%clk 0:02:59]}  e5 {[%clk 0:02:42]} 7. d5 {[%clk 0:02:59]}  c6 {[%clk 0:02:42]} 8. Qd2 {[%clk 0:02:59]}  Nfd7 {[%clk 0:02:35]} 9. g4 {[%clk 0:02:54]}  f5 {[%clk 0:02:30]} 10. gxf5 {[%clk 0:02:43]}  gxf5 {[%clk 0:02:15]} 11. exf5 {[%clk 0:02:43]}  Nc5 {[%clk 0:02:03]} 12. Bxc5 {[%clk 0:02:34]}  dxc5 {[%clk 0:02:01]} 13. O-O-O {[%clk 0:02:27]}  Bxf5 {[%clk 0:01:48]} 14. Bd3 {[%clk 0:02:24]}  Qh4 {[%clk 0:01:43]} 15. Kb1 {[%clk 0:02:09]}  cxd5 {[%clk 0:01:39]} 16. Nxd5 {[%clk 0:02:07]}  Nc6 {[%clk 0:01:38]} 17. Ne2 {[%clk 0:01:54]}  e4 {[%clk 0:01:03]} 18. fxe4 {[%clk 0:01:47]}  Bxe4 {[%clk 0:01:04]} 19. Rhg1 {[%clk 0:01:45]}  Kh8 {[%clk 0:00:47]} 20. Ka1 {[%clk 0:01:32]}  Rf2 {[%clk 0:00:27]} 21. Qe3 {[%clk 0:01:04]}  Bxd3 {[%clk 0:00:15]} 22. Rxd3 {[%clk 0:00:59]}  Qxh2 {[%clk 0:00:14]} 23. Rxg7 {[%clk 0:00:34]}  Rxe2 {[%clk 0:00:14]} 24. Qg1 {[%clk 0:00:28]}  Rxb2 {[%clk 0:00:10]} 25. Rxh7+ {[%clk 0:00:16]}  Kxh7 {[%clk 0:00:10]} 26. Nf6+ {[%clk 0:00:13]}  Kh8 {[%clk 0:00:10]} 27. Rh3+ {[%clk 0:00:07]}  Qxh3 {[%clk 0:00:10]} 28. Kxb2 {[%clk 0:00:08]}  Rf8 {[%clk 0:00:09]} 29. Nd5 {[%clk 0:00:05]}  Nd4 {[%clk 0:00:08]} 30. Qg5 {[%clk 0:00:03]}  Qh2+ {[%clk 0:00:08]} 31. Kc3 {[%clk 0:00:03]}  Rf3+ {[%clk 0:00:08]} 32. Ne3 {[%clk 0:00:01]}  Qc2# {[%clk 0:00:07]} 0-1


[Site "https://www.chess.com"]

[Event "Titled Tuesday Blitz April 4 Early 2023"]
[White "Melikhov, Evgeny V."]
[Black "Thiel, Thomas"]
[WhiteFideId "4122046"]
[BlackFideId "4615964"]
[WhiteElo "2158"]
[BlackElo "2218"]
[Result "1/2-1/2"]
[Round "03"]
[TimeControl "180+2"]
[Date "2023.04.04"]
[WhiteClock "0:01:09"]
[BlackClock "0:01:03"]

1. d4 {[%clk 0:03:00]}  Nf6 {[%clk 0:02:56]} 2. c4 {[%clk 0:03:00]}  g6 {[%clk 0:02:56]} 3. Nc3 {[%clk 0:03:00]}  d5 {[%clk 0:02:55]} 4. cxd5 {[%clk 0:03:01]}  Nxd5 {[%clk 0:02:55]} 5. e4 {[%clk 0:03:01]}  Nxc3 {[%clk 0:02:54]} 6. bxc3 {[%clk 0:03:02]}  Bg7 {[%clk 0:02:53]} 7. Bc4 {[%clk 0:03:02]}  c5 {[%clk 0:02:53]} 8. Ne2 {[%clk 0:03:03]}  O-O {[%clk 0:02:52]} 9. Be3 {[%clk 0:03:03]}  Nc6 {[%clk 0:02:50]} 10. h4 {[%clk 0:03:03]}  cxd4 {[%clk 0:02:46]} 11. cxd4 {[%clk 0:03:03]}  Qa5+ {[%clk 0:02:44]} 12. Kf1 {[%clk 0:03:03]}  Qa3 {[%clk 0:02:40]} 13. Qc1 {[%clk 0:03:03]}  Qxc1+ {[%clk 0:02:36]} 14. Rxc1 {[%clk 0:03:03]}  h5 {[%clk 0:02:33]} 15. f3 {[%clk 0:02:55]}  e6 {[%clk 0:02:30]} 16. Kf2 {[%clk 0:02:54]}  Rd8 {[%clk 0:02:28]} 17. Rhd1 {[%clk 0:02:52]}  Bd7 {[%clk 0:02:22]} 18. Bg5 {[%clk 0:02:46]}  Rdc8 {[%clk 0:02:09]} 19. d5 {[%clk 0:02:27]}  exd5 {[%clk 0:02:07]} 20. Bxd5 {[%clk 0:02:25]}  Be8 {[%clk 0:02:01]} 21. Nf4 {[%clk 0:01:55]}  Kh7 {[%clk 0:01:53]} 22. Bxc6 {[%clk 0:01:52]}  Bxc6 {[%clk 0:01:49]} 23. Nd5 {[%clk 0:01:52]}  Bxd5 {[%clk 0:01:41]} 24. Rxd5 {[%clk 0:01:44]}  Rxc1 {[%clk 0:01:26]} 25. Bxc1 {[%clk 0:01:43]}  Rc8 {[%clk 0:01:26]} 26. Be3 {[%clk 0:01:43]}  Rc2+ {[%clk 0:01:25]} 27. Rd2 {[%clk 0:01:42]}  Rxd2+ {[%clk 0:01:22]} 28. Bxd2 {[%clk 0:01:42]}  f5 {[%clk 0:01:21]} 29. exf5 {[%clk 0:01:21]}  gxf5 {[%clk 0:01:22]} 30. g4 {[%clk 0:01:18]}  fxg4 {[%clk 0:01:20]} 31. fxg4 {[%clk 0:01:18]}  hxg4 {[%clk 0:01:19]} 32. Kg3 {[%clk 0:01:18]}  b5 {[%clk 0:01:11]} 33. Kxg4 {[%clk 0:01:18]}  Bf8 {[%clk 0:01:10]} 34. Kf5 {[%clk 0:01:16]}  b4 {[%clk 0:01:10]} 35. Ke6 {[%clk 0:01:15]}  a5 {[%clk 0:01:09]} 36. Kd5 {[%clk 0:01:15]}  a4 {[%clk 0:01:08]} 37. Kc4 {[%clk 0:01:13]}  b3 {[%clk 0:01:08]} 38. axb3 {[%clk 0:01:13]}  axb3 {[%clk 0:01:09]} 39. Kxb3 {[%clk 0:01:13]}  Be7 {[%clk 0:01:09]} 40. h5 {[%clk 0:01:12]}  Bf8 {[%clk 0:01:04]} 41. Kc4 {[%clk 0:01:12]}  Bh6 {[%clk 0:01:04]} 42. Bc3 {[%clk 0:01:11]}  Bg5 {[%clk 0:01:03]} 43. Kd5 {[%clk 0:01:09]}  Kh6 {[%clk 0:01:03]} 44. Ke4 {[%clk 0:01:09]}  Kxh5 {[%clk 0:01:03]} 1/2-1/2


[Site "https://www.chess.com"]